[Event "Chinese League Div-A Rapid 2022"]
[Site "Fuling,Chongqing"]
[Date "2022.09.16"]
[Round "9.15"]
[White "Zhai, Mo"]
[Black "Song, Yuxin"]
[Result "1/2-1/2"]
[ECO "E39"]
[WhiteElo "2374"]
[BlackElo "2317"]
[Annotator "TA"]
[PlyCount "97"]
[EventDate "2022.09.07"]
[EventType "team-tourn"]
[EventCountry "CHN"]
[SourceTitle "playchess.com"]
[Source "ChessBase"]
[SourceQuality "1"]
[TimeControl "1500+10"]

{[%evp 26,97,18,17,25,22,22,20,29,18,13,3,12,10,14,0,0,0,0,0,14,11,10,0,0,0,0,-8,-8,-8,-6,-8,-6,-4,-7,-43,-43,-43,-43,-43,-43,-50,0,-14,-8,-14,-14,-3,0,-8,0,0,0,0,0,0,0,0,0,0,0,0,0,0,0,0,0,-354,0,0,0,-346,0,0]} 1. d4 {[%emt 0:00:02]} Nf6 {[%emt 0:00:01]} 2. c4 {[%emt 0:00:05]} e6 {[%emt 0:00:01]} 3. Nc3 {[%emt 0:00:04]} Bb4 {[%emt 0:00:02]} 4. Qc2 {[%emt 0:00:04]} O-O {[%emt 0:00:02]} 5. Nf3 {[%emt 0:00:16]} c5 {[%emt 0:00:04]} 6. dxc5 {[%emt 0:00:34]} Na6 {[%emt 0:00:01][%cal Bb8a6,Ba6c5,Bc5e4][%mdl 32]} 7. g3 {[%emt 0:00:37]} Nxc5 {[%emt 0:00:01]} 8. Bg2 {[%emt 0:00:20]} Nce4 {[%emt 0:00:01]} 9. O-O {[%emt 0:00:25]} Nxc3 {[%emt 0:00:01]} 10. bxc3 {[%emt 0:00:07]} Be7 {[%emt 0:00:02]} 11. e4 {[%emt 0:01:02]} d6 {[%emt 0:00:01]} 12. e5 {[%emt 0:01:57]} dxe5 {[%emt 0:00:01]} 13. Nxe5 {[%emt 0:00:11]} Qc7 {[%emt 0:00:01]} 14. Qe2 {[%emt 0:00:36]} (14. Re1 {looks sharper.} Nd7 15. Bf4 Nxe5 16. Bxe5 Qxc4 17. Rad1) 14... Nd7 {[%emt 0:00:01] is the new trend. E39: Nimzo-Indian: Classical: 4...c5 5 dxc5 0-0.} 15. Bf4 {[%emt 0:01:05][%cal Oe5g6] Strongly threatening Ng6!} Nxe5 {[%emt 0:00:01]} 16. Bxe5 {[%emt 0:00:11]} Bd6 {[%emt 0:00:01]} 17. Bxd6 {[%emt 0:00:19]} Qxd6 {[%emt 0:00:01]} 18. Rab1 {[%emt 0:00:48]} Rb8 {[%emt 0:00:16]} 19. Rfd1 {[%emt 0:01:34]} Qc7 {[%emt 0:00:02]} 20. Qd3 {[%emt 0:02:59]} b6 {[%emt 0:00:01]} 21. Qd6 {[%emt 0:00:23]} Qxd6 {[%emt 0:00:01]} 22. Rxd6 {[%emt 0:00:05] [#]} Ba6 $146 {[%emt 0:00:01]} ({Predecessor:} 22... Bb7 23. Rd7 Bxg2 24. Kxg2 Ra8 25. Rbd1 Rfc8 26. R1d4 g5 27. h4 Rc5 28. hxg5 Rxg5 {1-0 (47) Korobov,A (2683)-Georgiev,K (2594) Krasnaya Polyana 2021}) 23. c5 {[%emt 0:00:23] Black must now prevent Rbd1.} Rfd8 {[%emt 0:00:01]} 24. Rbd1 {[%emt 0:01:46]} Rxd6 {[%emt 0:03:54]} 25. Rxd6 $11 {[%emt 0:00:33][%mdl 4096] Endgame KRB-KRB} Kf8 {[%emt 0:01:32]} 26. c6 {[%emt 0:02:07] Hoping for Rd7.} Rc8 {[%emt 0:00:02]} 27. Rd7 {[%emt 0:02:17] And now a4 would win.} Bb5 {[%emt 0:00:05]} 28. Rxa7 {[%emt 0:00:17]} Bxc6 {[%emt 0:00:02]} 29. Bxc6 {[%emt 0:00:12]} Rxc6 {[%emt 0:00:02] KR-KR} 30. Rb7 {[%emt 0:00:10]} Rxc3 {[%emt 0:00:19]} 31. Rxb6 {[%emt 0:00:07]} Ra3 {[%emt 0:01:15]} 32. Rb2 {[%emt 0:00:10]} g5 {[%emt 0:00:28]} 33. Kf1 {[%emt 0:01:42]} g4 {[%emt 0:00:14]} (33... Ke7 $15) 34. Ke2 {[%emt 0:00:17]} h5 {[%emt 0:00:20]} 35. Kd1 {[%emt 0:00:30]} f5 {[%emt 0:00:24]} 36. Kc1 {[%emt 0:00:28]} Ke7 {[%emt 0:02:11][%cal Of5f4]} 37. Rd2 {[%emt 0:00:41]} h4 {[%emt 0:01:44][%cal Of5f4]} 38. Kb2 {[%emt 0:00:46]} hxg3 {[%emt 0:00:04]} 39. hxg3 {[%emt 0:00:49]} Ra8 {[%emt 0:00:13]} 40. Rd4 {[%emt 0:02:00]} e5 {[%emt 0:00:06]} 41. Rb4 {[%emt 0:00:16]} Kf6 {[%emt 0:02:53]} 42. a4 {[%emt 0:00:15]} Kg5 {[%emt 0:00:02]} 43. Kb3 {[%emt 0:00:23]} f4 {[%emt 0:00:03]} 44. Kc3 {[%emt 0:00:41]} Kf5 {[%emt 0:00:22]} 45. Kd3 {[%emt 0:00:03]} Rd8+ {[%emt 0:00:09]} 46. Ke2 $2 {[%emt 0:00:08][%mdl 8192] [#]} (46. Kc2 $11 {and White is okay.}) 46... Ra8 $2 {[%emt 0:00:04]} ({Better is} 46... f3+ $1 $19 47. Ke1 Rh8) 47. Kd3 {[%emt 0:00:34]} Rd8+ $2 {[%emt 0:00:01][%mdl 8192]} (47... f3 $11) 48. Ke2 $19 {[%emt 0:00:02] [#]} Ra8 $2 {[%emt 0:00:01]} (48... f3+ $1 $19 49. Ke1 Rh8) 49. Kd3 {[%emt 0:00:14] Weighted Error Value: White=0.26 (precise) /Black=0.24 (precise)} 1/2-1/2

[Event "Chinese League Div-A Rapid 2022"]
[Site "Fuling,Chongqing"]
[Date "2022.09.16"]
[Round "9.16"]
[White "Chen, Qi b"]
[Black "Zhang, Pengxiang"]
[Result "0-1"]
[ECO "C54"]
[WhiteElo "2485"]
[BlackElo "2564"]
[Annotator "ChessBase"]
[PlyCount "64"]
[EventDate "2022.09.07"]
[EventType "team-tourn"]
[EventCountry "CHN"]
[SourceTitle "playchess.com"]
[Source "ChessBase"]
[SourceQuality "1"]
[TimeControl "1500+10"]

1. e4 {[%emt 0:00:03]} e5 {[%emt 0:00:01]} 2. Nf3 {[%emt 0:00:01]} Nc6 {[%emt 0:00:01]} 3. Bc4 {[%emt 0:00:02]} Bc5 {[%emt 0:00:29]} 4. c3 {[%emt 0:00:02]} Nf6 {[%emt 0:00:02]} 5. d4 {[%emt 0:00:02]} exd4 {[%emt 0:00:05]} 6. cxd4 {[%emt 0:00:01]} Bb4+ {[%emt 0:00:02]} 7. Nc3 {[%emt 0:00:02]} Nxe4 {[%emt 0:00:16]} 8. O-O {[%emt 0:00:02]} Bxc3 {[%emt 0:00:03]} 9. d5 {[%emt 0:00:02]} Ne5 {[%emt 0:00:03]} 10. Qe2 {[%emt 0:00:13]} O-O {[%emt 0:00:38]} 11. bxc3 {[%emt 0:00:22]} Nxc4 {[%emt 0:00:21]} 12. Qxc4 {[%emt 0:00:06]} Nd6 {[%emt 0:00:37]} 13. Qf4 {[%emt 0:00:01]} b6 {[%emt 0:00:45]} 14. Ba3 {[%emt 0:00:02]} Bb7 {[%emt 0:01:11]} 15. Rfd1 {[%emt 0:07:42]} Re8 {[%emt 0:00:31]} 16. Bxd6 {[%emt 0:01:25]} cxd6 {[%emt 0:00:01]} 17. Nd4 {[%emt 0:00:52]} Bxd5 {[%emt 0:04:51]} 18. Nf5 {[%emt 0:00:02]} Re5 {[%emt 0:00:12]} 19. Ne3 {[%emt 0:05:31]} Be6 {[%emt 0:01:17]} 20. Rxd6 {[%emt 0:00:03]} Qf6 {[%emt 0:00:13]} 21. Qb4 {[%emt 0:02:41]} Rc5 {[%emt 0:01:42]} 22. Rc1 {[%emt 0:00:02]} Rac8 {[%emt 0:00:08]} 23. Rd4 {[%emt 0:00:02]} a5 {[%emt 0:01:55]} 24. Qa4 {[%emt 0:00:29]} b5 {[%emt 0:01:53]} 25. Qd1 {[%emt 0:00:14]} Rxc3 {[%emt 0:00:03]} 26. Rxc3 {[%emt 0:00:15]} Rxc3 {[%emt 0:00:01]} 27. h3 {[%emt 0:00:23]} h6 {[%emt 0:00:14]} 28. Nd5 {[%emt 0:01:19]} Bxd5 {[%emt 0:02:05]} 29. Rxd5 {[%emt 0:00:01]} Qf4 {[%emt 0:01:34]} 30. g3 {[%emt 0:01:06]} Qc4 {[%emt 0:01:23]} 31. Kh2 {[%emt 0:00:45]} Rc2 {[%emt 0:01:13]} 32. Rd2 {[%emt 0:00:02]} Rxa2 {[%emt 0:01:04]} 0-1

[Event "Chinese League Div-A Rapid 2022"]
[Site "Fuling,Chongqing"]
[Date "2022.09.16"]
[Round "9.17"]
[White "Lin, Chen"]
[Black "Peng, Xiongjian"]
[Result "0-1"]
[ECO "B36"]
[WhiteElo "2485"]
[BlackElo "2454"]
[Annotator "TA"]
[PlyCount "112"]
[EventDate "2022.09.07"]
[EventType "team-tourn"]
[EventCountry "CHN"]
[SourceTitle "playchess.com"]
[Source "ChessBase"]
[SourceQuality "1"]
[TimeControl "1500+10"]

{[%evp 23,112,24,35,33,65,47,64,33,45,37,41,5,7,6,8,11,8,8,14,26,12,-7,-8,-10,0,0,-5,-11,-8,0,0,-14,-21,-18,-17,-40,-46,-88,-91,-103,-97,-100,-95,-103,-100,-123,-123,-136,-136,-135,-127,-127,-125,-174,-176,-170,-138,-162,-150,-168,-168,-177,-177,-177,-177,-177,-177,-177,-177,-204,-116,-204,-204,-389,-379,-379,-385,-347,-306,-296,-294,-1446,-1259,-29967,-29969,-29967,-29967,-29970,-29971,-29986,-29987]} 1. e4 {[%emt 0:00:03]} c5 {[%emt 0:00:02]} 2. Nf3 {[%emt 0:00:03]} Nc6 {[%emt 0:00:01]} 3. d4 {[%emt 0:00:10]} cxd4 {[%emt 0:00:03]} 4. Nxd4 {[%emt 0:00:02]} g6 {[%emt 0:00:08]} 5. c4 {[%emt 0:00:18]} Nf6 {[%emt 0:00:08]} 6. Nc3 {[%emt 0:00:03]} d6 {[%emt 0:00:04]} 7. Be2 {[%emt 0:00:08]} Nxd4 {[%emt 0:00:07]} 8. Qxd4 {[%emt 0:00:04]} Bg7 {[%emt 0:00:02]} 9. Be3 {[%emt 0:00:24]} O-O {[%emt 0:00:16]} 10. Qd2 {[%emt 0:00:04]} a5 {[%emt 0:00:45]} 11. O-O {[%emt 0:00:50]} a4 {[%emt 0:00:06]} 12. f3 {[%emt 0:01:17]} Be6 {[%emt 0:01:03]} 13. b3 {[%emt 0:03:29] B36: Sicilian: Maroczy Bind: Gurgenidze System.} axb3 {[%emt 0:01:01]} 14. axb3 {[%emt 0:00:03]} Nd7 {[%emt 0:00:06]} 15. Rab1 {[%emt 0:00:55] White is slightly better.} Qa5 {[%emt 0:01:10]} 16. b4 {[%emt 0:01:27]} Qa3 {[%emt 0:00:02] [#]} 17. Nb5 $146 {[%emt 0:04:26]} (17. Rfc1 $5 {[%cal Rc3d5]}) ({Predecessor:} 17. Rfc1 Rfc8 18. Nd5 Bxd5 19. exd5 h5 20. Rc2 b6 21. Bf2 Kh7 22. f4 Kg8 23. h3 {½-½ (39) Ponomariov,R (2675)-Mamedov,R (2650) Hengshui 2019}) 17... Qa2 {[%emt 0:00:05]} 18. Nc7 {[%emt 0:00:04]} Qxd2 {[%emt 0:00:28]} 19. Bxd2 {[%emt 0:00:02]} Ra2 $132 {[%emt 0:00:40][%mdl 2048] Black is not holding back} 20. Rfd1 {[%emt 0:00:02]} Rc8 {[%emt 0:01:37]} (20... Ne5 {feels hotter.} 21. c5 dxc5 22. Nxe6 fxe6 23. bxc5 Kf7) 21. Nxe6 {[%emt 0:00:08]} fxe6 {[%emt 0:00:02]} 22. Bf1 {[%emt 0:02:37]} Kf7 {[%emt 0:02:54]} 23. Be3 {[%emt 0:01:03][%cal Oc4c5]} b6 {[%emt 0:00:27] Against c5} 24. f4 {[%emt 0:02:36][%cal Oe4e5]} Ra3 {[%emt 0:02:47]} 25. Bc1 {[%emt 0:01:13]} Ra7 {[%emt 0:00:39]} 26. Be3 {[%emt 0:00:50]} Rca8 {[%emt 0:00:39]} 27. e5 {[%emt 0:00:40]} dxe5 {[%emt 0:00:22]} 28. fxe5 {[%emt 0:00:02]} Bxe5 {[%emt 0:01:57]} 29. Rd2 {[%emt 0:01:41]} Ra3 {[%emt 0:00:44]} 30. Rxd7 {[%emt 0:01:37]} Rxe3 {[%emt 0:00:02]} 31. Rd3 {[%emt 0:00:16]} Rxd3 {[%emt 0:00:54]} 32. Bxd3 $17 {[%emt 0:00:01][%mdl 4096] Endgame KRB-KRB} Ra3 {[%emt 0:00:23]} 33. Be2 {[%emt 0:00:41]} Ra2 {[%emt 0:00:38]} 34. Kf2 {[%emt 0:00:34]} Bxh2 {[%emt 0:01:28] Black has more active pieces.} 35. Rh1 {[%emt 0:00:03]} Bd6 {[%emt 0:00:16]} 36. Rxh7+ {[%emt 0:00:44]} Kg8 {[%emt 0:00:02]} 37. Rh4 {[%emt 0:00:05]} Bxb4 {[%emt 0:00:03]} 38. Re4 {[%emt 0:00:14]} (38. Kf3 $17 {was called for.}) 38... Kf7 $19 {[%emt 0:00:09]} 39. Kf3 {[%emt 0:00:22]} Bd6 {[%emt 0:00:44] Prevents Rf4+.} 40. Bd3 {[%emt 0:00:20]} Rd2 {[%emt 0:00:25]} 41. Be2 {[%emt 0:00:37]} Kf6 {[%emt 0:00:13]} 42. Rh4 {[%emt 0:00:11]} e5 {[%emt 0:02:00]} 43. Ke3 {[%emt 0:01:06]} Ra2 {[%emt 0:00:38]} 44. Bf3 {[%emt 0:00:00]} Bc5+ {[%emt 0:00:02]} 45. Kd3 {[%emt 0:00:00]} Ra3+ {[%emt 0:00:08]} 46. Ke2 {[%emt 0:00:00]} Kg5 {[%emt 0:00:28]} (46... g5 $19 47. Rh3 Kf5) 47. Re4 {[%emt 0:00:09]} (47. Rh3 $17) 47... Kf5 {[%emt 0:00:17]} 48. g4+ $2 {[%emt 0:00:14] [#]} (48. Kd1 {might work better.}) 48... Kf6 {[%emt 0:00:05]} 49. g5+ {[%emt 0:00:34]} Kf5 {[%emt 0:00:02]} 50. Bh1 {[%emt 0:00:27]} Rh3 {[%emt 0:01:22]} 51. Bf3 {[%emt 0:00:14]} Rg3 {[%emt 0:01:15] Against Bg4+} ({Avoid the trap} 51... Kxg5 $2 52. Rxe5+ Kf6 53. Re4 $19) 52. Rh4 $2 {[%emt 0:00:10] [#]} (52. Bh1) 52... Kxg5 {[%emt 0:00:02]} 53. Rh2 {[%emt 0:00:22]} e4 {[%emt 0:00:21][%cal Be5e4,Be4e3][%mdl 32] Black mates.} 54. Bh1 {[%emt 0:00:00]} Ra3 {[%emt 0:00:17]} 55. Rh8 {[%emt 0:00:13]} Ra2+ {[%emt 0:00:12]} 56. Kf1 {[%emt 0:00:06]} e3 {[%emt 0:00:20] Weighted Error Value: White=0.47/Black=0.06 (flawless)} 0-1

[Event "Chinese League Div-A Rapid 2022"]
[Site "Fuling,Chongqing"]
[Date "2022.09.16"]
[Round "9.18"]
[White "Xu, Jun"]
[Black "Nie, Xinyang"]
[Result "0-1"]
[ECO "E11"]
[WhiteElo "2474"]
[BlackElo "2388"]
[Annotator "TA"]
[PlyCount "135"]
[EventDate "2022.09.07"]
[EventType "team-tourn"]
[EventCountry "CHN"]
[SourceTitle "playchess.com"]
[Source "ChessBase"]
[SourceQuality "1"]
[TimeControl "1500+10"]

{[%evp 10,135,33,32,40,46,34,15,0,-8,20,-22,-36,-31,-38,-64,-29,-31,-39,-27,-39,-40,-30,-31,6,18,11,-47,16,-21,-21,-41,-31,-36,-45,-62,-54,-56,-64,-94,-57,-80,-56,-109,-30,-80,-80,-80,-80,-80,-91,-89,-80,-81,-66,-68,-68,-67,-66,-72,-72,-75,-34,-66,-52,-81,-81,-123,-166,-163,-164,-218,-187,-215,-149,-174,-154,-197,-75,-66,-72,-75,-75,-89,-64,-210,-51,-62,0,-237,-218,-515,-469,-460,-457,-445,-436,-786,-613,-1268,-981,-2215,-2023,-29969,-12824,-29980,-29981,-29978,-29970,-29987,-29986,-29992,-29991,-29991,-29992,-29993,-29991,-29995,-29980,-29991,-29992,-29993,-29984,-29984,-29983,-29983,-29984,-29985]} 1. d4 {[%emt 0:00:02]} Nf6 {[%emt 0:00:01]} 2. c4 {[%emt 0:00:04]} e6 {[%emt 0:00:02]} 3. Nf3 {[%emt 0:00:04]} Bb4+ {[%emt 0:00:02]} 4. Bd2 {[%emt 0:00:06]} c5 {[%emt 0:00:01]} 5. g3 {[%emt 0:00:07]} O-O {[%emt 0:00:12]} 6. Bg2 {[%emt 0:00:04]} d6 {[%emt 0:01:30] E11: Bogo-Indian.} 7. O-O {[%emt 0:00:06]} Nc6 {[%emt 0:00:38]} 8. Be3 {[%emt 0:00:50]} Qe7 {[%emt 0:01:52] [#] The position is equal.} 9. h3 $146 {[%emt 0:01:34]} ({Predecessor:} 9. Nc3 Bxc3 10. bxc3 Na5 11. Qd3 e5 12. Nd2 Bg4 13. Rae1 h6 14. f4 e4 15. Nxe4 Nxe4 16. Bxe4 {0-1 (37) Starostits,A (2377)-Smirnov,A (2376) Tallinn 2006}) 9... Rd8 {[%emt 0:00:16]} 10. Qc2 {[%emt 0:00:40]} e5 {[%emt 0:00:21]} 11. dxe5 {[%emt 0:04:28]} dxe5 {[%emt 0:00:02]} 12. Bg5 {[%emt 0:00:42]} h6 {[%emt 0:02:12]} (12... e4 $5 {[%cal Re4f3]} 13. Nfd2 Nd4 $17) 13. Bxf6 {[%emt 0:00:09]} Qxf6 {[%emt 0:00:01]} 14. Nc3 {[%emt 0:00:11]} Bf5 {[%emt 0:00:03]} 15. Ne4 $1 {[%emt 0:02:36]} Qe7 {[%emt 0:00:02]} 16. e3 {[%emt 0:00:14]} Rd7 {[%emt 0:00:51]} 17. Rfd1 {[%emt 0:00:19]} Rad8 {[%emt 0:00:03] Hoping for ...Rxd1+.} 18. Nh2 {[%emt 0:01:00] [#]} (18. Rxd7 $11 Rxd7 19. a3) 18... Bg6 {[%emt 0:01:25]} (18... Rd2 $1 $15 19. Rxd2 Rxd2) 19. Nf1 {[%emt 0:00:14]} f5 $1 {[%emt 0:00:28]} 20. Rxd7 {[%emt 0:01:56]} Qxd7 {[%emt 0:00:45]} 21. Nc3 {[%emt 0:00:43]} Bxc3 {[%emt 0:00:01]} 22. Bxc6 {[%emt 0:02:09]} Qxc6 {[%emt 0:00:02]} 23. Qxc3 {[%emt 0:00:02]} Qd6 {[%emt 0:01:39]} 24. Nh2 {[%emt 0:00:53]} e4 {[%emt 0:00:59]} 25. b3 {[%emt 0:00:31]} Bh5 {[%emt 0:00:05]} 26. a4 {[%emt 0:00:36]} (26. Qa5 $15) 26... Kf7 {[%emt 0:00:49]} ({Better is} 26... Qe7 $17 27. Qa5 Rd3 28. Qxa7 Rxb3) 27. a5 {[%emt 0:00:07]} (27. Qa5 $11 {keeps the balance.}) 27... Qf6 $17 {[%emt 0:00:16]} 28. Qxf6+ {[%emt 0:00:16]} Kxf6 {[%emt 0:00:01][%mdl 4096] Endgame KRB-KRN} 29. g4 {[%emt 0:00:12]} fxg4 {[%emt 0:00:03]} 30. hxg4 {[%emt 0:00:11]} Bf7 {[%emt 0:00:14]} 31. Rb1 {[%emt 0:00:12]} b6 {[%emt 0:00:22]} 32. axb6 {[%emt 0:02:01]} axb6 {[%emt 0:00:01]} 33. Kg2 {[%emt 0:00:19]} Rd3 {[%emt 0:01:17]} 34. Kg3 {[%emt 0:01:11]} Ke5 {[%emt 0:00:02][%cal Ob6b5]} 35. Nf1 {[%emt 0:00:33]} Be6 {[%emt 0:00:24]} 36. Kh4 {[%emt 0:00:39]} g6 {[%emt 0:03:10][%cal Ob6b5,Bg7g6,Bg6g5][%mdl 32]} 37. Kg3 {[%emt 0:00:14]} g5 {[%emt 0:00:01] Black is more active.} 38. f3 {[%emt 0:00:45]} exf3 {[%emt 0:00:25]} 39. Kxf3 {[%emt 0:00:00]} Rd8 {[%emt 0:00:33]} 40. Ra1 {[%emt 0:00:45]} (40. Nh2 {was called for.}) 40... Rd7 {[%emt 0:01:15]} 41. Rb1 {[%emt 0:00:31]} Rd3 {[%emt 0:00:22]} 42. Ng3 {[%emt 0:00:23]} Rd8 {[%emt 0:02:10]} 43. Nf1 {[%emt 0:00:10]} Bf7 {[%emt 0:00:41]} (43... Rf8+ $19 44. Kg3 Rd8) 44. Ra1 {[%emt 0:00:35]} Rd3 {[%emt 0:00:07]} 45. Rb1 {[%emt 0:00:06]} Rd6 {[%emt 0:01:23]} 46. Ra1 {[%emt 0:00:16]} Bg6 {[%emt 0:00:18]} 47. Ng3 {[%emt 0:00:23]} (47. Ra2 $1 $15) 47... Rd3 $2 {[%emt 0:00:02]} ({Black should play} 47... Bc2 $19 {...Bd1+ is the strong threat.} 48. Ke2 Bxb3) 48. Rh1 $15 {[%emt 0:00:27]} Rd6 $2 {[%emt 0:00:15]} (48... Rxb3 $15 49. Rxh6 Bf7) 49. Ra1 $1 $19 {[%emt 0:00:16] Black converts the advantage convincingly.} Bc2 {[%emt 0:00:07]} 50. Nf5 $2 {[%emt 0:00:27]} (50. Ke2 {was the only defense.}) 50... Be4+ {[%emt 0:00:28]} 51. Kg3 {[%emt 0:00:06]} Bxf5 {[%emt 0:00:02]} 52. gxf5 {[%emt 0:00:01]} Kxf5 {[%emt 0:00:01] KR-KR} 53. Kf3 {[%emt 0:00:10]} (53. b4 $142 cxb4 54. Rb1) 53... h5 {[%emt 0:00:09][%cal Bh6h5,Bh5h4][%mdl 32] [#] And now ...g4+ would win.} 54. b4 {[%emt 0:00:11]} cxb4 {[%emt 0:00:27]} 55. Rb1 {[%emt 0:00:01]} g4+ {[%emt 0:00:01]} 56. Kg3 {[%emt 0:00:01]} Kg5 {[%emt 0:00:09] ( -> ...Rd2)} 57. Rxb4 {[%emt 0:00:03]} h4+ {[%emt 0:00:00] Black mates.} 58. Kf2 {[%emt 0:00:11]} Rf6+ {[%emt 0:00:01]} 59. Kg1 {[%emt 0:00:05]} h3 {[%emt 0:00:09]} 60. Kh2 {[%emt 0:00:13]} Kh4 {[%emt 0:00:02]} 61. Kg1 {[%emt 0:00:08]} Rd6 {[%emt 0:00:07]} 62. Rb1 {[%emt 0:00:10]} Kg3 {[%emt 0:00:35]} 63. e4 {[%emt 0:00:01]} Kf4 {[%emt 0:00:02]} 64. Re1 {[%emt 0:00:10]} g3 {[%emt 0:00:08]} 65. e5 {[%emt 0:00:03]} Re6 {[%emt 0:00:01]} 66. Rf1+ {[%emt 0:00:02]} Kxe5 {[%emt 0:00:32]} 67. Rf3 {[%emt 0:00:03]} Rg6 {[%emt 0:00:06]} 68. Rd3 {[%emt 0:00:04] Weighted Error Value: White=0.53/Black=0.28 (precise)} 0-1

[Event "Chinese League Div-A Rapid 2022"]
[Site "Fuling,Chongqing"]
[Date "2022.09.16"]
[Round "9.19"]
[White "Zhang, Xiaowen"]
[Black "Yuan, Ye"]
[Result "0-1"]
[ECO "C42"]
[WhiteElo "2307"]
[BlackElo "2108"]
[Annotator "TA"]
[PlyCount "60"]
[EventDate "2022.09.07"]
[EventType "team-tourn"]
[EventCountry "CHN"]
[SourceTitle "playchess.com"]
[Source "ChessBase"]
[SourceQuality "1"]
[TimeControl "1500+10"]

{[%evp 19,60,22,29,20,34,29,24,29,23,49,44,29,24,11,22,-12,24,24,28,50,40,19,14,13,0,22,21,0,0,0,25,12,100,-68,-72,-61,-64,-320,-337,-657,-634,-29987,-289]} 1. e4 {[%emt 0:00:03]} e5 {[%emt 0:00:01]} 2. Nf3 {[%emt 0:01:42]} Nf6 {[%emt 0:00:02]} 3. Nc3 {[%emt 0:02:47]} Bb4 {[%emt 0:00:03]} 4. Nxe5 {[%emt 0:01:50]} O-O {[%emt 0:00:06]} 5. Be2 {[%emt 0:00:04]} Re8 {[%emt 0:00:04]} 6. Nd3 {[%emt 0:00:02]} Bxc3 {[%emt 0:00:03]} 7. dxc3 {[%emt 0:00:02]} Nxe4 {[%emt 0:00:05]} 8. O-O {[%emt 0:00:04]} d5 {[%emt 0:00:04]} 9. Nf4 {[%emt 0:04:14]} c6 {[%emt 0:00:06]} 10. c4 {[%emt 0:00:12]} d4 {[%emt 0:00:04]} 11. Re1 {[%emt 0:01:16] C42: Petroff Defence: 3 Nxe5 and unusual White 3rd moves.} Na6 {[%emt 0:01:25]} 12. Bf1 {[%emt 0:00:15][%cal Oc2c3]} Bf5 {[%emt 0:01:35]} 13. f3 {[%emt 0:02:19] White has an edge.} Nf6 {[%emt 0:00:53]} 14. Rxe8+ {[%emt 0:00:03]} Nxe8 {[%emt 0:00:21]} 15. g4 {[%emt 0:01:28]} Bg6 {[%emt 0:02:57] [#]} 16. Nxg6 $146 {[%emt 0:00:10]} ({Predecessor:} 16. b3 d3 17. c3 Qb6+ 18. Kg2 Rd8 19. Qe2 Nec7 20. b4 c5 21. b5 Nb8 22. Be3 {1-0 (49) Romero Holmes,A (2440)-Fernandez Garcia,J (2445) Spain 1993}) 16... hxg6 {[%emt 0:00:03]} 17. b3 {[%emt 0:01:03]} c5 {[%emt 0:02:41]} 18. Bf4 {[%emt 0:00:09]} Nec7 {[%emt 0:02:00]} 19. Bg3 {[%emt 0:00:21]} Ne6 {[%emt 0:01:23]} 20. Qd2 {[%emt 0:02:03]} Qf6 {[%emt 0:02:36]} 21. f4 {[%emt 0:00:26] Against Ng5} Nb4 {[%emt 0:02:11]} 22. Bg2 {[%emt 0:03:37]} Rd8 {[%emt 0:01:33]} 23. a3 {[%emt 0:01:35]} (23. Bxb7 d3 24. c3 Nd4 $17) (23. Rd1 $5 {[%cal Ra2a3]}) 23... d3 {[%emt 0:01:39]} 24. c3 {[%emt 0:00:01] [#] Black must now prevent g5.} Nc2 {[%emt 0:00:03]} (24... Nd4 $5 {[%cal Rd4b3]} 25. g5 (25. axb4 $2 Nxb3 26. Qe3 Nxa1 $19) 25... Qd6 $11) 25. Rf1 {[%emt 0:00:30]} g5 {[%emt 0:01:09]} (25... b5 $11) 26. f5 $2 {[%emt 0:00:19]} (26. fxg5 $16 Qxg5 27. Qxg5 Nxg5 28. Bh4 (28. Bxb7 $2 d2 $19)) 26... Nf4 $1 $15 {[%emt 0:00:11]} 27. Bxf4 {[%emt 0:01:15]} gxf4 {[%emt 0:00:01]} 28. Bxb7 $2 {[%emt 0:01:29][%mdl 8192]} (28. Rf3 $1 $15) 28... Qg5 $19 {[%emt 0:01:27]} ({Not} 28... Qe7 $2 29. Bc6 $19) 29. Rxf4 {[%emt 0:00:19]} (29. Kh1 Ne3 30. Rg1) 29... Re8 {[%emt 0:00:18] [#] Threatens to win with ...Re1+.} 30. Bf3 {[%emt 0:00:06]} Re3 $2 {[%emt 0:00:59] Weighted Error Value: White=0.79/Black=0.11 (very precise)} (30... Re1+ {mates} 31. Kf2 Qh4+ 32. Kg2 Ne3+ 33. Qxe3 Rxe3 34. Bd1 Qh3+ 35. Kf2 Re5 36. g5 Qxh2+ 37. Kf3 Qg1 38. Re4 Rxf5+ 39. Rf4 Qxd1+ 40. Kf2 Rxg5 41. Rg4 Rxg4 42. Ke3 Qe2#) 0-1